{"text_format":"1","workbook":"xlsx","n_sheets":1,"sheets":["New Investor"],"not_rendered":{"charts":0,"images":1,"macros":1,"external_links":0,"defined_names":0,"comments":0,"pivot_tables":0},"unopened":[],"bounds":{"document_bytes":16777216,"sheet_cells":100000,"rows_first":2000,"rows_last":500,"rows_between":2000,"halvings":0,"cell_chars":16384,"cell_head_chars":4096},"cells_cut":0,"cells_raw":0,"read":"whole","date_system":"1900"}

{"sheet":"New Investor","index":0,"n_rows":55,"n_cols":13,"rows_kept":55,"cut":false,"hidden":false,"merged":[[4,0,4,2]]}
[null,null,"6A Navjivan Bldg,","(+91)9323141970"]
[null,null,"17/1 Dattatraya Road,","(+91) (22 ) 26603739"]
[null,null,"Santa Cruz West, Mumbai 400054"]
[]
["FIRST APPLICANTS DETAILS",null,null,"COMMENTS/NOTES"]
[1,"APPLICANT NAME"]
[{"$f":"A6+1","v":2},"DATE OF BIRTH","2005-03-18",null,null,{"$f":"\"You are \"&M7&\" years, \"&M8&\" months and \"&M9&\" days old\"","v":"You are 12 years, 11 months and 341 days old"},null,null,null,null,null,null,{"$f":"DATEDIF(C7,TODAY(),\"Y\")","v":12}]
[{"$f":"A7+1","v":3},"PAN",null,null,null,null,null,null,null,null,null,null,{"$f":"DATEDIF(C7,TODAY(),\"YM\")","v":11}]
[4,"FATHERS NAME",null,null,null,null,null,null,null,null,null,null,{"$f":"DATEDIF(C7,TODAY(),\"YD\")","v":341}]
[5,"MOTHERS NAME"]
[6,"GENDER","SELECT…"]
[7,"MARITIAL STATUS","SELECT..."]
[8,"ARE YOU KYC COMPLIANT","SELECT…"]
[9,"KYC INDENTIFICATION NUMBER (KIN), IF AVAILABLE "]
[10,"ADDRESS TYPE","SELECT…"]
[11,"ADDRESS 1"]
[null,"ADDRESS 2"]
[null,"ADDRESS 3"]
[{"$f":"A16+1","v":12},"ADHAAR NUMBER ( MANDATORY FOR RESIDENT INDIVIDUAL )"]
[{"$f":"A19+1","v":13},"MOBILE NUMBER"]
[{"$f":"A20+1","v":14},"EMAIL ID"]
[null,"KYC DETAILS"]
[15,"TAX STATUS","SELECT…"]
[{"$f":"A23+1","v":16},"OCCUPATION","SELECT…"]
[{"$f":"A24+1","v":17},"GROSS ANNUAL INCOME","SELECT…"]
[18,"WHETHER APPLICANT POLITICALLY EXPOSED "]
[null,"FATCA AND CRS DETAILS"]
[{"$f":"A26+1","v":19},"PLACE OF BIRTH"]
[{"$f":"A28+1","v":20},"COUNTRY OF BIRTH"]
[{"$f":"A29+1","v":21},"IS THE APLICANT COUNTRY OF BIRTH/TAX RESIDENCY/NATIONALITY OTHER THAN INDIA","SELECT…"]
[22,"IF YES, COUNTRY OF BIRTH"]
[23,"IF YES, TAX IDENTIFICATION NUMBER"]
[24,"IF YES, IDENTIFICATION TYPE"]
[null,"BANK DETAILS"]
[{"$f":"A33+1","v":25},"BANK NAME"]
[{"$f":"A35+1","v":26},"BANK ACCOUNT"]
[{"$f":"A36+1","v":27},"ACCOUNT TYPE"]
[28,"BANK CITY"]
[29,"BANK BRANCH"]
[30,"IFSC CODE ( 11 DIGITS )"]
[31,"MICR ( 9 DIGIT )"]
[{"$f":"A41+1","v":32},"INTERNET BANKING AVAIBALE AT BANK","SELECT…"]
[null,"INVESTMENT DETAILS"]
[{"$f":"A42+1","v":33},"SCHEME NAME"]
[{"$f":"A44+1","v":34},"FUND OPTION"]
[{"$f":"A45+1","v":35},"MODE OF INVESTMENT"]
[{"$f":"A46+1","v":36},"INITIAL AMOUNT"]
[37,"SIP AMOUNT"]
[38,"SIP DURATION ( IN MONTHS )"]
[null,"NOMINATION","SELECT…"]
[{"$f":"A49+1","v":39},"NAME OF NOMINEE"]
[{"$f":"A51+1","v":40},"DOB OF NOMINEE"]
[{"$f":"A52+1","v":41},"RELATIONSHIP TO NOMINEE","SELECT…"]
[]
[null,"PLEASE ATTACH A SCAN COPY OF PAN, CANCELLED CHEQUE AND ADHAR CARD"]